bitfinex/quotes_SOLUSD_20250206
["timestamp","ask_amount","ask_price","bid_price","bid_amount"]
[1738876449857,5.825e-05,192.84,192.83,53.25523017]
[1738876450658,5.825e-05,192.84,192.83,19.84338164]
[1738876450866,5.825e-05,192.84,192.83,23.89789164]
[1738876451159,5.825e-05,192.84,192.83,4.18]
[1738876451833,5.825e-05,192.84,192.81,19.71819164]
[1738876452035,5.825e-05,192.84,192.82,14.53199164]
[1738876452228,5.825e-05,192.84,192.81,14.53199164]
[1738876452432,5.825e-05,192.84,192.8,14.53199164]
[1738876452853,5.825e-05,192.84,192.79,23.89889164]
[1738876453441,14.53199164,192.83,192.78,0.0001]
[1738876454155,14.53199164,192.82,192.78,0.0001]
[1738876454461,34.53199164,192.83,192.78,0.0001]
[1738876455137,20.0,192.83,192.78,0.0001]
[1738876455862,0.09416786,192.79,192.78,14.53209164]
[1738876456248,0.09416786,192.79,192.78,0.0001]
[1738876458346,34.6261595,192.79,192.78,0.0001]
[1738876459679,34.8771395,192.79,192.78,0.0001]
[1738876459873,34.6261595,192.79,192.78,0.0001]
[1738876460175,14.6261595,192.79,192.78,0.0001]
[1738876461593,14.8771395,192.79,192.78,0.0001]
[1738876462091,15.0026295,192.79,192.78,0.0001]
[1738876463281,30.41447803,192.79,192.78,0.0001]
[1738876466494,31.71999392,192.79,192.78,0.0001]
[1738876467203,21.25098,192.76,192.75,0.03]
[1738876467386,0.12549,192.73,192.66,0.063]
[1738876467587,14.53199164,192.69,192.66,0.063]
[1738876467779,14.53199164,192.67,192.66,0.063]
[1738876470299,14.53199164,192.68,192.66,0.063]
[1738876473806,34.53199164,192.69,192.66,0.063]
[1738876474205,82.1,192.72,192.66,14.59499164]
[1738876474604,96.63199164,192.72,192.66,0.063]
[1738876475876,0.09505416,192.67,192.66,0.063]
[1738876476983,14.6270458,192.67,192.66,0.063]
[1738876479219,96.7270458,192.67,192.66,0.063]
[1738876479708,97.63020515,192.67,192.66,0.063]
[1738876479912,16.78118515,192.67,192.66,0.063]
[1738876480518,31.19303368,192.67,192.66,0.063]
[1738876480714,0.25098,192.66,192.65,0.063]
[1738876481008,14.78297164,192.66,192.65,0.063]
[1738876481207,36.87611017,192.66,192.65,0.0001]
[1738876481409,35.87611017,192.66,192.65,0.0001]
[1738876481815,34.87611017,192.66,192.65,0.0001]
[1738876482594,35.87611017,192.66,192.65,0.0001]
[1738876482793,36.87611017,192.66,192.65,0.0001]
[1738876483201,2.0,192.63,192.61,0.063]
[1738876483407,50.09797952,192.62,192.61,0.063]
[1738876483790,35.68613099,192.62,192.61,0.063]
[1738876483991,34.53199164,192.62,192.61,0.063]
[1738876484719,14.53199164,192.63,192.61,0.063]
[1738876484905,20.0,192.62,192.61,0.063]
[1738876488018,34.65748164,192.62,192.61,0.063]
[1738876488195,34.90846164,192.62,192.61,0.063]
[1738876488614,48.32031017,192.62,192.61,0.063]
[1738876488819,49.32031017,192.62,192.61,0.063]
[1738876489121,13.53733853,192.61,192.5,5.1947]
[1738876489331,14.53199164,192.56,192.5,5.1947]
[1738876489533,20.0,192.57,192.54,14.53199164]
[1738876489706,20.0,192.57,192.53,14.53199164]
[1738876490027,20.0,192.56,192.52,14.53199164]
[1738876490204,20.0,192.56,192.52,19.72619164]
[1738876490709,20.0,192.57,192.51,19.72649164]
[1738876492236,20.0,192.57,192.52,14.53199164]
[1738876492729,20.0,192.56,192.52,14.53199164]
[1738876493109,14.53199164,192.59,192.5,5.1948]
[1738876493110,20.0,192.57,192.54,14.53199164]
[1738876493316,82.1,192.6,192.54,14.53199164]
[1738876493622,14.53199164,192.63,192.56,14.53199164]
[1738876493822,20.0,192.6,192.57,14.53199164]
[1738876494023,14.53199164,192.63,192.56,14.53199164]
[1738876495005,20.0,192.6,192.56,19.72499164]
[1738876495705,34.53199164,192.62,192.55,14.53199164]
[1738876495907,0.10987867,192.57,192.55,14.53199164]
[1738876497026,0.10987867,192.57,192.55,19.72529164]
[1738876497235,0.10987867,192.57,192.55,14.53199164]
[1738876497526,0.10987867,192.57,192.52,19.72609164]
[1738876499128,0.10987867,192.57,192.53,14.53199164]
[1738876500307,0.10987867,192.57,192.56,14.53199164]
[1738876501232,0.10987867,192.57,192.55,14.53199164]
[1738876501415,14.64187031,192.57,192.51,0.063]
[1738876501611,0.10987867,192.57,192.54,14.53199164]
[1738876502839,0.10987867,192.57,192.55,14.53199164]
[1738876503809,0.10987867,192.57,192.55,19.72529164]
[1738876504036,0.10987867,192.57,192.56,14.53199164]
[1738876505107,0.10987867,192.57,192.56,21.39168164]
[1738876505429,0.10987867,192.57,192.56,34.80353017]
[1738876505633,0.10987867,192.57,192.56,21.26619164]
[1738876505803,0.10987867,192.57,192.56,14.53199164]
[1738876506006,0.10987867,192.57,192.56,19.72509164]
[1738876507424,0.10987867,192.57,192.56,19.78809164]
[1738876507629,0.10987867,192.57,192.56,0.063]
[1738876508831,0.10987867,192.57,192.56,14.59499164]
[1738876509342,0.10987867,192.57,192.56,0.063]
[1738876509528,0.10987867,192.57,192.56,14.59499164]
[1738876509929,0.10987867,192.57,192.56,19.91358164]
[1738876510122,0.10987867,192.57,192.56,33.32543017]
[1738876513040,0.10987867,192.57,192.56,19.78809164]
[1738876513345,0.10987867,192.57,192.56,0.063]
[1738876515334,0.10987867,192.57,192.56,14.59499164]
[1738876515844,0.22138016,192.57,192.56,14.59499164]
[1738876516544,0.22138016,192.57,192.56,0.063]
[1738876516743,0.11150149,192.57,192.56,0.063]
[1738876518046,0.11150149,192.57,192.56,14.59499164]
[1738876518560,0.10245163,192.62,192.59,20.25098]
[1738876518845,0.10245163,192.62,192.61,27.94384017]
[1738876519048,0.10245163,192.62,192.61,14.53199164]
[1738876519539,5.163e-05,192.62,192.61,31.22443509]
[1738876519737,5.299e-05,192.66,192.65,33.66282853]
[1738876519918,5.299e-05,192.66,192.65,43.81181193]
[1738876520123,5.299e-05,192.66,192.65,58.34380357]
[1738876520825,0.03,192.75,192.68,0.25098]
[1738876521032,0.03,192.75,192.74,14.53199164]
[1738876522251,0.03,192.75,192.74,19.72029164]
[1738876524166,0.03,192.75,192.74,14.53199164]
[1738876525951,0.03,192.75,192.74,19.72029164]
[1738876526430,0.03,192.75,192.74,14.53199164]
[1738876527828,0.03,192.75,192.74,14.65748164]
[1738876528066,0.03,192.75,192.74,28.84734312]
[1738876528360,0.03,192.75,192.74,33.25763017]
[1738876529450,0.03,192.75,192.74,19.72029164]
[1738876531740,0.03,192.75,192.74,33.25763017]
[1738876533049,0.03,192.75,192.74,19.72029164]
[1738876533229,0.03,192.75,192.74,23.90029164]
[1738876534243,0.03,192.75,192.73,14.53199164]
[1738876534446,0.03,192.75,192.7,14.53199164]
[1738876534639,14.56199164,192.75,192.69,18.71199164]
[1738876534839,14.56199164,192.75,192.68,14.53199164]
[1738876535053,14.53199164,192.72,192.66,14.53199164]
[1738876535265,14.53199164,192.72,192.62,12.9787]
[1738876535266,14.53199164,192.72,192.65,14.53199164]
[1738876535772,14.53199164,192.68,192.62,14.53199164]
[1738876536068,0.09639667,192.66,192.61,61.68]
[1738876536260,14.53199164,192.65,192.58,14.53199164]
[1738876536668,14.53199164,192.64,192.58,14.53199164]
[1738876536968,14.53199164,192.63,192.57,14.53199164]
[1738876537141,14.53199164,192.6,192.56,0.063]
[1738876537337,14.53199164,192.59,192.56,0.063]
[1738876537963,14.53199164,192.58,192.56,0.063]
[1738876538172,14.53199164,192.57,192.56,0.063]
[1738876538665,8.53546935,192.6,192.56,0.063]
[1738876538666,23.32691019,192.58,192.56,0.063]
[1738876538875,23.32691019,192.57,192.56,0.063]
[1738876539449,23.57789019,192.57,192.56,0.063]
[1738876543140,23.32691019,192.57,192.56,0.063]
[1738876543761,23.32691019,192.58,192.56,0.063]
[1738876543970,23.32691019,192.59,192.56,0.063]
[1738876544753,7.7578,192.6,192.56,23.38991019]
[1738876544964,82.1,192.61,192.57,23.32691019]
[1738876545578,23.32691019,192.62,192.56,23.38991019]
[1738876546272,23.32691019,192.61,192.56,0.063]
[1738876547048,23.32691019,192.58,192.56,0.063]
[1738876549068,23.45240019,192.57,192.56,0.063]
[1738876549375,37.11522872,192.57,192.56,0.063]
[1738876549562,37.89289807,192.57,192.56,0.063]
[1738876549765,13.66282853,192.56,192.55,0.063]
[1738876549962,36.98973872,192.56,192.55,0.063]
[1738876550367,36.98973872,192.56,192.51,0.063]
[1738876550368,0.25098,192.52,192.51,0.063]
[1738876550773,23.57789019,192.52,192.51,0.063]
[1738876551079,37.11522872,192.52,192.51,0.063]
[1738876551252,0.12549,192.47,192.46,0.063]
[1738876551450,24.35555954,192.47,192.46,0.063]
[1738876551665,45.86969807,192.47,192.46,0.0001]
[1738876551874,46.86969807,192.47,192.46,0.0001]
[1738876552079,20.0,192.44,192.36,0.063]
[1738876552264,23.32691019,192.39,192.36,0.063]
[1738876553159,23.45240019,192.39,192.36,0.063]
[1738876553765,23.70338019,192.39,192.36,0.063]
[1738876554669,23.32691019,192.39,192.36,0.063]
[1738876555858,23.43178569,192.39,192.36,0.063]
[1738876556882,23.55727569,192.39,192.36,0.063]
[1738876557589,23.43178569,192.39,192.36,0.063]
[1738876557962,37.22010422,192.39,192.36,0.063]
[1738876559783,38.22010422,192.39,192.36,0.063]
[1738876559965,37.22010422,192.39,192.36,0.063]
[1738876560460,38.22010422,192.39,192.36,0.063]
[1738876560865,39.22010422,192.39,192.36,0.063]
[1738876561060,1.0,192.33,192.21,5.2026]
[1738876561260,23.32691019,192.22,192.17,5.2037]
[1738876561460,23.32691019,192.21,192.17,5.2037]
[1738876561677,23.32691019,192.22,192.17,5.2037]
[1738876562062,23.32691019,192.22,192.16,11.7359]
[1738876562909,23.32691019,192.23,192.16,35.06281019]
[1738876563185,23.32691019,192.28,192.21,23.32691019]
[1738876563386,23.32691019,192.24,192.18,23.32691019]
[1738876563684,1.15413935,192.29,192.17,23.32691019]
[1738876563884,23.32691019,192.27,192.2,23.32691019]
[1738876564082,23.32691019,192.28,192.21,28.52931019]
[1738876564286,23.32691019,192.29,192.22,23.32691019]
[1738876564473,23.32691019,192.28,192.21,28.52931019]
[1738876565063,23.32691019,192.24,192.17,28.53061019]
[1738876565263,23.32691019,192.23,192.17,5.2037]
[1738876565502,23.32691019,192.24,192.17,28.53061019]
[1738876565866,23.32691019,192.25,192.18,23.32691019]
[1738876566071,23.32691019,192.25,192.19,5.2031]
[1738876567285,23.32691019,192.25,192.18,23.32691019]
[1738876567478,23.32691019,192.25,192.18,28.53031019]
[1738876567966,23.32691019,192.26,192.19,23.32691019]
[1738876568174,82.1,192.3,192.2,23.32691019]
[1738876568175,23.32691019,192.27,192.2,23.32691019]
[1738876568691,43.32691019,192.27,192.2,23.32691019]
[1738876569979,23.32691019,192.26,192.19,28.52991019]
[1738876570270,23.32691019,192.24,192.18,23.32691019]
[1738876570792,23.32691019,192.25,192.18,23.32691019]
[1738876571096,23.32691019,192.25,192.17,0.063]
[1738876571097,23.32691019,192.21,192.17,0.063]
[1738876571274,23.32691019,192.2,192.17,0.063]
[1738876572197,23.32691019,192.18,192.17,0.063]
[1738876572505,23.70338019,192.18,192.17,0.063]
[1738876572807,20.12549,192.14,192.04,23.32691019]
[1738876572982,20.12549,192.14,192.02,5.2077]
[1738876573302,23.32691019,192.1,192.03,23.32691019]
[1738876573484,23.32691019,192.09,192.03,23.32691019]
[1738876573681,23.32691019,192.1,192.03,23.32691019]
[1738876573876,23.32691019,192.09,192.02,23.32691019]
[1738876574393,23.32691019,192.09,192.0,17.0754]
[1738876574394,23.32691019,192.11,192.03,23.32691019]
[1738876574769,23.32691019,192.1,192.03,23.32691019]
[1738876574968,23.32691019,192.07,192.0,29.45241019]
[1738876575182,23.32691019,192.06,192.0,6.1255]
[1738876575492,23.32691019,192.05,191.98,23.32691019]
[1738876575792,0.09967622,192.01,191.97,23.38991019]
[1738876575994,0.09967622,192.01,191.97,28.59901019]
[1738876576300,23.32691019,192.0,191.97,0.063]
[1738876576593,23.32691019,191.98,191.97,0.063]
[1738876576799,23.32691019,191.99,191.97,0.063]
[1738876576974,20.12549,192.0,191.97,0.063]
[1738876577174,0.12549,191.98,191.97,0.063]
[1738876577391,23.70338019,191.98,191.97,0.063]
[1738876578199,37.11522872,191.98,191.97,0.063]
[1738876578382,38.11522872,191.98,191.97,0.063]
[1738876578799,37.11522872,191.98,191.97,0.063]
[1738876579297,24.10457954,191.98,191.97,0.063]
[1738876579487,23.32691019,191.99,191.97,0.063]
[1738876579687,23.32691019,192.0,191.97,0.063]
[1738876580001,43.32691019,192.0,191.97,0.063]
[1738876580308,20.0,192.0,191.97,0.063]
[1738876580602,23.42658641,192.01,191.97,0.063]
[1738876580902,0.09967622,192.01,191.99,23.32691019]
[1738876581083,0.09967622,192.01,192.0,23.32691019]
[1738876581683,0.09967622,192.01,191.97,23.38991019]
[1738876582089,0.09967622,192.01,191.97,28.59891019]
[1738876582389,0.09967622,192.01,191.98,23.32691019]
[1738876582914,0.09967622,192.01,192.0,23.32691019]
[1738876583916,0.09967622,192.01,192.0,28.53521019]
[1738876586120,0.09967622,192.01,191.97,13.0858]
[1738876586121,0.09967622,192.01,191.98,28.53571019]
[1738876586425,0.09967622,192.01,191.98,5.2088]
[1738876587427,0.09967622,192.01,191.97,0.063]
[1738876587600,23.42658641,192.01,191.97,0.063]
[1738876587931,23.32691019,192.0,191.97,0.063]
[1738876588898,0.09967622,192.01,191.97,0.063]
[1738876589130,0.09967622,192.01,191.97,23.38991019]
[1738876589302,0.09967622,192.01,191.99,23.32691019]
[1738876589636,0.09967622,192.01,192.0,46.65382038]
[1738876589925,0.09967622,192.01,192.0,24.10794351]
[1738876590126,0.09967622,192.01,192.0,23.32691019]
[1738876590425,0.09967622,192.01,192.0,47.56029518]
[1738876590627,9.663e-05,192.02,192.0,52.76859518]
[1738876590795,8.512e-05,192.05,192.04,20.0]
[1738876590996,0.03,192.17,192.05,15.91380853]
[1738876591302,0.03,192.17,192.06,23.32691019]
[1738876592003,0.03,192.17,192.06,28.53361019]
[1738876593410,0.03,192.17,192.08,22.25098]
[1738876593600,0.03,192.17,192.1,1.0]
[1738876593800,0.03,192.17,192.16,23.32691019]
[1738876594017,0.03,192.17,192.15,4.36]
[1738876595928,0.10921218,192.16,192.15,4.36]
[1738876598141,0.10921218,192.16,192.15,32.89111019]
[1738876598609,0.10921218,192.16,192.15,4.36]
[1738876598809,0.10921218,192.16,192.15,9.5642]
[1738876599010,0.10921218,192.16,192.15,32.89111019]
[1738876599939,7.817e-05,192.17,192.16,0.12549]
[1738876600140,7.817e-05,192.17,192.16,24.23270017]
[1738876600629,7.817e-05,192.17,192.16,24.10721017]
[1738876600946,7.817e-05,192.17,192.16,24.10730377]
[1738876601150,7.817e-05,192.17,192.16,29.31120377]
[1738876601736,7.817e-05,192.17,192.16,29.43669377]
[1738876601937,7.817e-05,192.17,192.16,28.53081019]
[1738876602737,0.03007817,192.17,192.16,28.53081019]
[1738876603614,23.35698836,192.17,192.08,23.32691019]
[1738876603835,23.32691019,192.11,192.06,0.063]
[1738876604641,23.32691019,192.12,192.06,0.063]
[1738876605324,23.32691019,192.13,192.06,0.063]
[1738876605932,43.32691019,192.15,192.07,23.32691019]
[1738876606330,43.32691019,192.15,192.08,23.32691019]
[1738876606744,20.0,192.15,192.09,23.32691019]
[1738876607350,0.03007817,192.17,192.1,23.32691019]
[1738876607529,0.03007817,192.17,192.12,23.32691019]
[1738876608040,0.03007817,192.17,192.06,0.18849]
[1738876608041,23.35698836,192.17,192.1,23.32691019]
[1738876608720,0.03007817,192.17,192.11,23.32691019]
[1738876609566,0.03007817,192.17,192.12,23.32691019]
[1738876610060,0.03007817,192.17,192.15,23.32691019]
[1738876610226,0.03007817,192.17,192.14,23.32691019]
[1738876610554,0.03007817,192.17,192.16,23.32691019]
[1738876611543,0.03007817,192.17,192.16,28.53081019]
[1738876612647,0.03007817,192.17,192.16,29.31117384]
[1738876612853,0.03007817,192.17,192.16,28.53081019]
[1738876614260,0.03007817,192.17,192.14,0.78035353]
[1738876614432,23.35698836,192.17,192.1,28.53251019]
[1738876614631,23.35698836,192.17,192.1,28.59551019]
[1738876614833,0.03007817,192.17,192.1,28.59551019]
[1738876615053,0.03007817,192.17,192.11,23.32691019]
[1738876615264,0.03007817,192.17,192.12,23.32691019]
[1738876615442,0.03007817,192.17,192.16,23.32691019]
[1738876615632,0.03007817,192.17,192.11,0.12549]
[1738876615633,0.03007817,192.17,192.15,23.32691019]
[1738876615962,0.13372299,192.17,192.15,23.32691019]
[1738876616338,0.13372299,192.17,192.11,0.90593012]
[1738876616339,0.13372299,192.17,192.11,23.32691019]
[1738876616534,23.46063318,192.17,192.1,23.38991019]
[1738876616730,23.32691019,192.15,192.1,0.063]
[1738876617847,23.32691019,192.14,192.1,0.063]
[1738876618155,23.32691019,192.13,192.1,0.063]
[1738876618656,23.32691019,192.12,192.1,0.063]
[1738876619432,23.32691019,192.13,192.1,0.063]
[1738876619642,23.32691019,192.14,192.1,0.063]
[1738876620232,43.32691019,192.15,192.1,0.063]
[1738876620459,23.32691019,192.15,192.1,0.063]
[1738876620958,23.32691019,192.13,192.1,0.063]
[1738876621158,23.32691019,192.12,192.1,0.063]
[1738876621354,23.32691019,192.11,192.1,0.063]
[1738876622130,23.32691019,192.11,192.1,0.0001]
[1738876622131,25.57789019,192.11,192.1,0.0001]
[1738876622465,55.12020038,192.11,192.1,0.0001]
[1738876622759,30.79329019,192.11,192.1,0.0001]
[1738876622973,29.54231019,192.11,192.1,0.0001]
[1738876623165,30.54231019,192.11,192.1,0.0001]
[1738876623639,29.54231019,192.11,192.1,0.0001]
[1738876624339,20.0,192.08,192.06,0.063]
[1738876624556,20.0,192.04,191.97,0.063]
[1738876624863,23.32691019,192.01,191.97,0.063]
[1738876625071,23.32691019,192.02,191.97,0.063]
[1738876625366,43.32691019,191.98,191.97,0.063]
[1738876625542,44.10457954,191.98,191.97,0.0001]
[1738876626139,58.89289807,191.98,191.97,0.0001]
[1738876626367,61.53799807,191.98,191.97,0.0001]
[1738876627053,2.0,191.96,191.9,0.063]
[1738876627261,23.32691019,191.91,191.9,0.063]
[1738876627476,24.10457954,191.91,191.79,23.32691019]
[1738876627646,23.32691019,191.9,191.82,23.32691019]
[1738876627841,0.77766935,191.93,191.81,23.32691019]
[1738876627842,23.32691019,191.88,191.81,23.32691019]
[1738876628346,23.32691019,191.82,191.75,31.16421999]
[1738876628547,20.0,191.84,191.75,31.16421999]
[1738876628748,23.32691019,191.82,191.75,31.16421999]
[1738876629061,23.32691019,191.81,191.75,7.8373098]
[1738876629261,20.0,191.84,191.75,7.8373098]
[1738876629443,23.32691019,191.77,191.75,7.8373098]
[1738876629641,23.32691019,191.77,191.7,23.32691019]
[1738876630352,23.32691019,191.79,191.71,23.32691019]
[1738876630747,23.32691019,191.78,191.71,23.32691019]
[1738876631268,23.32691019,191.77,191.7,23.32691019]
[1738876631469,23.32691019,191.76,191.69,23.32691019]
[1738876631675,23.32691019,191.78,191.7,23.32691019]
[1738876631845,23.32691019,191.79,191.71,23.32691019]
[1738876632040,23.32691019,191.82,191.74,23.32691019]
[1738876632246,23.32691019,191.85,191.78,23.32691019]
[1738876632565,20.0,191.84,191.73,5.2156]
[1738876632761,20.77766935,191.84,191.7,5.2164]
[1738876632971,23.32691019,191.82,191.75,23.32691019]
[1738876633350,20.37647,191.78,191.71,23.32691019]
[1738876633551,20.37647,191.78,191.65,5.2177]
[1738876633552,23.32691019,191.72,191.65,23.32691019]
[1738876633750,23.32691019,191.7,191.6,13.0474]
[1738876634349,23.32691019,191.72,191.64,23.32691019]
[1738876634552,23.32691019,191.72,191.65,23.32691019]
[1738876635164,23.32691019,191.74,191.66,23.32691019]
[1738876635376,23.32691019,191.74,191.67,23.32691019]
[1738876635680,23.32691019,191.74,191.66,23.32691019]
[1738876635973,0.09539603,191.68,191.66,23.32691019]
[1738876637281,0.09539603,191.68,191.65,23.32691019]
[1738876637655,0.09539603,191.68,191.62,23.32691019]
[1738876638189,23.32691019,191.63,191.54,23.32691019]
[1738876638477,23.32691019,191.62,191.55,23.32691019]
[1738876638649,23.32691019,191.64,191.59,0.063]
[1738876638845,23.32691019,191.66,191.59,23.32691019]
[1738876639074,23.32691019,191.65,191.58,23.32691019]
[1738876639476,23.32691019,191.67,191.59,23.32691019]
[1738876639655,0.09539603,191.68,191.54,14.32018632]
[1738876639852,0.09539603,191.68,191.64,23.32691019]
[1738876640052,0.09539603,191.68,191.63,23.32691019]
[1738876641188,0.09539603,191.68,191.67,23.32691019]
[1738876641785,0.09539603,191.68,191.67,23.45240019]
[1738876641989,0.09539603,191.68,191.67,23.32691019]
[1738876642576,0.09539603,191.68,191.67,43.44898255]
[1738876644689,0.09539603,191.68,191.67,43.57447255]
[1738876645203,9.603e-05,191.68,191.67,59.36279108]
[1738876645517,9.602e-05,191.7,191.69,33.78831853]
[1738876645686,1.616e-05,191.72,191.71,13.53733853]
[1738876645869,1.616e-05,191.72,191.71,56.99106973]
[1738876646281,6.2692,191.85,191.74,0.12549]
[1738876646485,1.999e-05,191.75,191.74,54.92742689]
[1738876646697,4.322e-05,191.77,191.76,0.12549]
[1738876646988,4.322e-05,191.77,191.76,38.35717255]
[1738876647382,4.322e-05,191.77,191.76,43.57197255]
[1738876647976,4.322e-05,191.77,191.76,43.44648255]
[1738876648799,4.322e-05,191.77,191.76,59.01676703]
[1738876649096,4.322e-05,191.77,191.76,97.37393958]
[1738876649284,4.322e-05,191.77,191.76,59.14225703]
[1738876649483,4.322e-05,191.77,191.76,60.14225703]
[1738876649675,39.81708255,191.92,191.81,0.12549]
[1738876649676,1.5854,191.92,191.81,0.12549]
[1738876649880,1.5854,191.92,191.86,38.23168255]
[1738876650479,6.2692,191.95,191.89,38.23168255]
[1738876650682,6.2692,191.95,191.91,38.23168255]
[1738876650896,6.2692,191.95,191.9,38.23168255]
[1738876651982,44.66118255,192.0,191.93,38.23168255]
[1738876652176,38.23168255,191.99,191.92,38.23168255]
[1738876652603,38.23168255,191.98,191.91,38.23168255]
[1738876652783,38.23168255,191.99,191.92,38.23168255]
[1738876653109,6.4295,192.0,191.88,38.23168255]
[1738876653110,38.23168255,191.95,191.88,38.23168255]
[1738876653275,38.23168255,191.92,191.84,38.23168255]
[1738876653482,38.23168255,191.91,191.84,38.23168255]
[1738876653713,38.23168255,191.92,191.85,38.23168255]
[1738876653885,38.23168255,191.94,191.87,38.23168255]
[1738876654210,38.23168255,191.93,191.86,38.23168255]
[1738876655586,38.23168255,191.95,191.88,38.23168255]
[1738876655911,0.09976682,191.89,191.88,38.23168255]
[1738876656678,0.09976682,191.89,191.88,43.56867255]
[1738876656895,0.09976682,191.89,191.88,57.10601108]
[1738876657124,0.09976682,191.89,191.88,95.33769363]
[1738876657332,0.09976682,191.89,191.88,57.10601108]
[1738876659106,0.09976682,191.89,191.88,38.23168255]
[1738876659307,0.09976682,191.89,191.87,4.42]
[1738876660235,38.23168255,191.88,191.8,38.23168255]
[1738876660454,38.23168255,191.85,191.79,4.44]
[1738876660946,38.23168255,191.87,191.8,38.23168255]
[1738876661438,38.23168255,191.87,191.79,42.67168255]
[1738876661644,6.14496682,191.89,191.79,42.67168255]
[1738876661645,6.14496682,191.89,191.84,38.23168255]
[1738876661818,6.14496682,191.89,191.83,38.23168255]
[1738876663734,44.37664937,191.89,191.82,38.23168255]
[1738876663934,6.14496682,191.89,191.83,38.23168255]
[1738876664242,38.23168255,191.86,191.79,42.67168255]
[1738876664636,38.23168255,191.87,191.8,38.23168255]
[1738876664834,38.23168255,191.86,191.79,42.67168255]
[1738876665139,38.23168255,191.87,191.8,38.23168255]
[1738876665344,6.14496682,191.89,191.77,0.063]
[1738876665345,20.0,191.86,191.77,0.063]
[1738876665560,38.23168255,191.83,191.77,0.063]
[1738876665728,38.23168255,191.81,191.77,0.063]
[1738876666151,38.23168255,191.84,191.77,0.063]
[1738876666329,38.23168255,191.85,191.78,38.23168255]
[1738876668577,38.23168255,191.84,191.77,0.063]
[1738876668744,38.23168255,191.83,191.77,0.063]
[1738876669270,38.23168255,191.82,191.77,0.063]
[1738876669652,38.23168255,191.83,191.77,0.063]
[1738876669877,0.77766935,191.88,191.77,38.29468255]
[1738876670048,38.23168255,191.86,191.79,38.23168255]
[1738876670253,38.23168255,191.84,191.78,38.23168255]
[1738876670766,23.50422971,191.85,191.78,23.50422971]
[1738876671688,23.50422971,191.84,191.78,23.50422971]
[1738876671981,23.50422971,191.85,191.78,23.50422971]
[1738876672143,23.50422971,191.86,191.79,23.50422971]
[1738876672553,43.50422971,191.86,191.79,23.50422971]
[1738876672768,23.50422971,191.88,191.81,23.50422971]
[1738876672984,0.09976682,191.89,191.87,23.50422971]
[1738876673285,0.09976682,191.89,191.8,23.50422971]
[1738876673286,0.09976682,191.89,191.88,23.50422971]
[1738876673443,0.09976682,191.89,191.86,23.50422971]
[1738876673648,0.09976682,191.89,191.87,23.50422971]
[1738876674086,0.09976682,191.89,191.88,23.50422971]
[1738876675158,0.09976682,191.89,191.87,23.50422971]
[1738876675476,0.09976682,191.89,191.83,4.4]
[1738876675477,0.09976682,191.89,191.84,23.50422971]
[1738876675870,0.10238437,191.86,191.83,9.6128]
[1738876677179,0.10238437,191.86,191.85,23.50422971]
[1738876677674,0.10238437,191.86,191.85,28.71662971]
[1738876677850,0.10238437,191.86,191.85,28.96760971]
[1738876678053,0.10238437,191.86,191.85,43.16105698]
[1738876678270,0.10238437,191.86,191.85,42.37945824]
[1738876680080,0.10555056,191.88,191.86,14.91380853]
[1738876680283,0.10555056,191.88,191.87,69.72098569]
[1738876680284,5.056e-05,191.88,191.87,69.72098569]
[1738876680470,2.629e-05,191.89,191.88,13.91380853]
[1738876680661,0.10654072,191.9,191.88,60.92226795]
[1738876680860,0.10654072,191.9,191.89,47.78977514]
[1738876681463,0.10654072,191.9,191.89,53.00107514]
[1738876681676,0.10654072,191.9,191.89,28.71552971]
[1738876682394,0.03,191.97,191.91,0.25098]
[1738876682560,7.352e-05,191.93,191.92,23.50422971]
[1738876683388,0.03,191.97,191.92,37.41803824]
[1738876683561,0.03,191.97,191.93,5.99134558]
[1738876683763,0.03,191.97,191.93,29.49557529]
[1738876684486,0.03,192.05,191.97,13.66282853]
[1738876684684,0.03,192.05,192.04,23.50422971]
[1738876685576,0.03,192.05,192.04,28.71142971]
[1738876686587,0.03,192.05,192.04,23.50422971]
[1738876686989,0.03,192.05,192.03,23.50422971]
[1738876687291,23.53422971,192.05,191.98,27.88422971]
[1738876687479,23.50422971,192.04,191.98,4.38]
[1738876687674,23.53422971,192.05,191.99,23.50422971]
[1738876687896,0.03,192.05,191.99,1.03211037]
[1738876688077,0.03,192.05,192.0,13.41184853]
[1738876688278,0.03,192.05,192.01,0.78087929]
[1738876688484,0.03,192.05,192.0,13.41184853]
[1738876689188,0.03,192.05,192.03,23.50422971]
[1738876689489,0.03,192.05,192.02,23.50422971]